{"text_format":"1","workbook":"xlsx","n_sheets":16,"sheets":["INTRO","INDEX","Codes","Population","Contexte","International","Nomenclature","Prestataires","Prescripteurs","GenreAge","HospiAmbu","StatutSocial","Tendances","Géographique","Complément","CONCLUSION"],"not_rendered":{"charts":0,"images":21,"macros":1,"external_links":0,"defined_names":1,"comments":0,"pivot_tables":0},"unopened":[],"bounds":{"document_bytes":16777216,"sheet_cells":100000,"rows_first":2000,"rows_last":500,"rows_between":2000,"halvings":0,"cell_chars":16384,"cell_head_chars":4096},"cells_cut":0,"cells_raw":0,"read":"whole","date_system":"1900"}

{"sheet":"INTRO","index":0,"n_rows":17,"n_cols":3,"rows_kept":17,"cut":false,"hidden":false,"merged":[[14,1,14,8],[1,1,1,8],[13,1,13,8],[6,1,6,8],[7,1,7,8],[11,1,11,3],[11,4,11,8],[9,2,9,4],[9,5,9,7],[2,1,2,8]]}
[]
[null,"VARIATIONS DES PRATIQUES MEDICALES"]
[null,"OUTIL D'AIDE A L'INTERPRETATION DES ANALYSES"]
[]
[]
[]
[null,"MERCI D'INDIQUER CI-DESSOUS LE TITRE DE L'ANALYSE CONCERNEE PAR VOS COMMENTAIRES"]
[]
[]
[null,null,"PERIODE OU ANNEE DE L'ANALYSE :"]
[]
[null,"VOTRE NOM :"]
[]
[null,"AVANT DE COMMENCER :\nCet outil a pour objectif de vous aider à formuler des éléments de validation et d'interprétation \naux analyses de variations de pratiques médicales. \nVous pouvez librement choisir d'y répondre de manière exhaustive ou d'apporter seulement l'un ou l'autre élément. \nPour cela, vous pouvez soit parcourir les pages et remplir uniquement les parties qui vous intéressent, \nsoit utiliser les raccourcis vers les différents chapitres de l'analyse qui sont proposés dans l'onglet INDEX.\nQuand vous avez terminé, veillez à bien enregistrer le document. Ensuite, nous vous remercions de bien vouloir nous le retourner par mail, accompagné de toute annexe que vous jugerez utile, à cette adresse :"]
[null,"appropriatecare@riziv-inami.fgov.be"]
[]
[null,{"$f":"TODAY()","v":"2019-11-04"}]

{"sheet":"INDEX","index":1,"n_rows":33,"n_cols":7,"rows_kept":33,"cut":false,"hidden":false,"merged":[[1,1,1,8],[9,6,9,7],[13,6,13,7],[23,6,23,7],[6,2,6,8],[2,1,2,8],[3,1,3,8]]}
[]
[null,"INDEX"]
[null,"CHOISISSEZ CI-DESSOUS LE CHAPITRE DE L'ANALYSE QUE VOUS SOUHAITEZ COMMENTER"]
[null,"Il n'est pas obligatoire de répondre de manière exhaustive à tous les chapitres cités ci-dessous.\nVous pouvez librement soit suivre l'ordre des chapitres, soit sélectionner uniquement les chapitres dans la liste ci-dessous qui vous paraissent les plus pertinents à aborder selon le thème que vous étudiez ou des éléments que vous souhaitez y apporter."]
[]
[]
[null,null,"Une petite croix verte apparaît devant les chapitres auxquels vous avez apporté des commentaires."]
[]
[null,"X"]
[null,null,null,null,null,null,"VALIDATION"]
[null,"X"]
[]
[null,"X"]
[null,null,null,null,null,null,"CONTEXTE"]
[null,"X"]
[]
[null,"X"]
[]
[null,"X"]
[]
[null,"X"]
[]
[null,"X"]
[null,null,null,null,null,null,"INTERPRÉTATION"]
[null,"X"]
[]
[null,"X"]
[]
[null,"X"]
[]
[null,"X"]
[]
[null,"X"]

{"sheet":"Codes","index":2,"n_rows":22,"n_cols":10,"rows_kept":22,"cut":false,"hidden":false,"merged":[[15,1,15,8],[16,1,16,2],[16,3,16,8],[17,1,17,2],[17,3,17,8],[11,3,11,8],[10,3,10,8],[9,3,9,8],[13,1,13,2],[12,1,12,2],[11,1,11,2],[10,1,10,2],[9,1,9,2],[13,3,13,8],[12,3,12,8],[21,1,21,2],[21,3,21,8],[18,1,18,2],[18,3,18,8],[19,1,19,2],[19,3,19,8],[20,1,20,2],[20,3,20,8],[1,1,1,8],[3,1,3,8],[7,1,7,8],[8,1,8,2],[8,3,8,8],[6,2,6,7]]}
[]
[null,"CHOIX DES CODES DE NOMENCLATURE"]
[]
[null,"Trouvez-vous la sélection des codes pour l’analyse adéquate et suffisante ?\n- Voir à la page 4 du rapport -"]
[]
[null,null,null,null,"OUI",null,"NON",0]
[null,null,"Merci pour votre réponse !"]
[null,"Selon vous, y a-t-il des CODES INADEQUATS sélectionnés pour cette analyse ?\nSi oui, lesquels et pourquoi ?"]
[null,"CODES INADEQUATS",null,"EXPLICATIONS"]
[]
[]
[]
[]
[null,null,null,null,null,null,null,null,null,{"$f":"COUNTA(B10:C14)","v":0}]
[]
[null,"Selon vous, y a-t-il des CODES MANQUANTS à cette analyse ?\nSi oui, lesquels et pourquoi ?"]
[null,"CODES MANQUANTS",null,"EXPLICATIONS"]
[]
[]
[]
[]
[null,null,null,null,null,null,null,null,null,{"$f":"COUNTA(B18:C22)","v":0}]

{"sheet":"Population","index":3,"n_rows":25,"n_cols":9,"rows_kept":25,"cut":false,"hidden":false,"merged":[[24,1,24,8],[25,1,25,8],[1,1,1,8],[3,1,3,8],[6,2,6,7],[8,1,8,8],[17,1,17,8],[21,4,21,6],[10,4,10,7],[12,1,12,2],[14,1,14,2],[19,4,19,6],[20,4,20,6]]}
[]
[null,"SELECTION DE LA POPULATION"]
[]
[null,"Trouvez-vous la sélection de population (âge, genre…) appropriée ?\n- Voir à la page 7 du rapport -"]
[]
[null,null,null,null,"OUI",null,"NON",0]
[null,null,"Merci pour votre réponse !"]
[]
[null,"Quel sélection sur l'âge recommanderiez-vous ?"]
[]
[null,null,null,false,"Aucune sélection sur l'âge"]
[]
[null,"Début de sélection (ans)",null,null,null,null,null,null,0]
[]
[null,"Fin de sélection (ans)",null,null,null,null,null,null,100]
[]
[]
[null,"Quel sélection sur le genre recommanderiez-vous ?"]
[]
[null,null,null,false,"Aucune"]
[null,null,null,false,"Femmes"]
[null,null,null,false,"Hommes"]
[null,null,null,true]
[]
[null,"Autres commentaires éventuels"]

{"sheet":"Contexte","index":4,"n_rows":27,"n_cols":13,"rows_kept":27,"cut":false,"hidden":false,"merged":[[19,1,19,3],[20,1,20,3],[1,1,1,3],[3,1,3,3]]}
[]
[null,"CONTEXTE GENERAL"]
[]
[null,"Quels sont les indications reconnues pour cette pratique médicale ? "]
[]
[null,"INDICATIONS","SOURCE","COMMENTAIRES"]
[]
[null,null," ↪ Merci de préciser :"]
[]
[null,null," ↪ Merci de préciser :"]
[]
[null,null," ↪ Merci de préciser :"]
[]
[null,null," ↪ Merci de préciser :"]
[]
[null,null," ↪ Merci de préciser :"]
[null,null,null,null,null,{"$f":"COUNTA(B7:D7)+COUNTA(B9:D9)+COUNTA(B11:D11)+COUNTA(B13:D13)+COUNTA(B15:D15)+COUNTA(B17:D17)","v":0}]
[null,null," ↪ Merci de préciser :"]
[]
[null,"Autres commentaires éventuels"]
[" "]
[]
[null,null,null,null,null,null,null,null,null,null,null,"Sélectionnez…",0]
[null,null,null,null,null,null,null,null,null,null,null,"Expérience professionnelle",1]
[null,null,null,null,null,null,null,null,null,null,null,"Recommandations professionnelles",2]
[null,null,null,null,null,null,null,null,null,null,null,"Littérature scientifique",3]
[null,null,null,null,null,null,null,null,null,null,null,"Autre",4]

{"sheet":"International","index":5,"n_rows":8,"n_cols":9,"rows_kept":8,"cut":false,"hidden":false,"merged":[[10,1,10,13],[11,1,11,13],[12,1,12,13],[6,3,6,8],[1,1,1,13],[3,1,3,13],[7,1,7,13],[8,1,8,13],[9,1,9,13]]}
[]
[null,"COMPARAISON INTERNATIONALE"]
[]
[null,"Disposez-vous de statistiques internationales concernant cette pratique ?"]
[]
[null,null,null,null,null,"OUI",null,"NON",0]
[null,null,null,"Merci pour votre réponse !"]
[null,"Merci de nous transmettre ci-dessous les sources de ces données \n(une par ligne, si possible via un lien internet)"]

{"sheet":"Nomenclature","index":6,"n_rows":23,"n_cols":18,"rows_kept":23,"cut":false,"hidden":false,"merged":[[1,1,1,12],[3,1,3,12],[7,1,7,12],[10,1,10,12],[11,1,11,12],[8,2,8,10]]}
[]
[null,"VOLUMES DES CODES DE NOMENCLATURE"]
[]
[null,"Observez-vous une variation significative de répartition en volumes\n des codes de nomenclature attestés sur les 10 dernières années ?\n- Voir à la page 9 du rapport -"]
[]
[null,null,null,null,"OUI",null,"NON",0]
[]
[null,{"$f":"IF(H6=1,\"Cette absence de variation vous paraît-elle cohérente aux attentes ?\nOu, au contraire, des variations auraient-elles été attendues ?\",IF(H6=2,\"Quelle peut être l'explication à ces variations ?\n(choix multiple ci-dessous)\",\"\"))","v":""}]
[]
[]
[null,"Commentaires"]
[]
[]
[]
[]
[]
[null,null,null,null,null,null,null,null,null,null,null,null,null,null,null,null,null,"Apparition d'un ou plusieurs nouveaux codes"]
[null,null,null,null,null,null,null,null,null,null,null,null,null,null,null,null,null,"Suppression d'un ou plusieurs codes"]
[null,null,null,null,null,null,null,null,null,null,null,null,null,null,null,null,null,"Modifications de la réglementation"]
[null,null,null,null,null,null,null,null,null,null,null,null,null,null,null,null,null,"Modifications de techniques"]
[null,null,null,null,null,null,null,null,null,null,null,null,null,null,null,null,null,"Nouvelles recommandations"]
[null,null,null,null,null,null,null,null,null,null,null,null,null,null,null,null,null,"Pas d'explication"]
[null,null,null,null,null,null,null,null,null,null,null,null,null,null,null,null,null,"Autre…"]

{"sheet":"Prestataires","index":7,"n_rows":15,"n_cols":12,"rows_kept":15,"cut":false,"hidden":false,"merged":[[1,1,1,9],[4,1,4,3],[4,5,4,9],[8,1,8,9],[9,1,9,9],[3,1,3,3],[3,5,3,9],[5,1,5,3],[5,5,5,9],[6,1,6,3],[6,5,6,9]]}
[]
[null,"SPÉCIALITÉS DES PRESTATAIRES\n- Voir à la page 10 du rapport -"]
[]
[null,"DONNÉES",null,null,"Conforme aux attentes ?","Pourquoi ?"]
[null,"Prestataires principaux"]
[null,"Répartition des prestataires\n(% Prestataires)"]
[null,"Répartition des volumes de prestations\n(% Prestations)",null,null,null,null,null,null,null,null,null,{"$f":"COUNTA(E5:J7)","v":0}]
[]
[null,"Autres commentaires éventuels"]
[]
[]
[null,{"$f":"COUNTA(B10,#REF!,#REF!)","v":2}]
[null,"Oui"]
[null,"Non"]
[null,"Non applicable"]

{"sheet":"Prescripteurs","index":8,"n_rows":12,"n_cols":15,"rows_kept":12,"cut":false,"hidden":false,"merged":[[8,1,8,9],[9,1,9,9],[1,1,1,9],[3,1,3,3],[3,5,3,9],[5,1,5,3],[5,5,5,9],[6,1,6,3],[6,5,6,9],[4,1,4,3],[4,5,4,9]]}
[]
[null,"SPÉCIALITÉS DES PRESCRIPTEURS\n- Voir à la page 11 du rapport -"]
[]
[null,"DONNÉES",null,null,"Conforme aux attentes ?","Pourquoi ?"]
[null,"Prescripteurs principaux"]
[null,"Répartition des prescripteurs\n(%  Prescripteurs)"]
[null,"Répartition des volumes de prescriptions\n(% Prescriptions)",null,null,null,null,null,null,null,null,{"$f":"COUNTA(E5:J7)","v":0},{"$f":"COUNTA(E5:J7)","v":0}]
[]
[null,"Autres commentaires éventuels",null,null,null,null,null,null,null,null,null,null,null,null,"Pas d'explication"]
[]
[]
[null,{"$f":"COUNTA(B10,#REF!,#REF!)","v":2}]

{"sheet":"GenreAge","index":9,"n_rows":18,"n_cols":12,"rows_kept":18,"cut":false,"hidden":false,"merged":[[17,1,17,9],[18,1,18,9],[5,1,5,3],[5,5,5,9],[14,1,14,9],[15,1,15,9],[8,1,8,3],[8,5,8,9],[10,1,10,9],[6,1,6,3],[6,5,6,9],[7,1,7,3],[7,5,7,9],[13,2,13,7],[1,1,1,9],[3,1,3,3],[3,5,3,9],[4,1,4,3],[4,5,4,9]]}
[null,{"$f":"COUNTA(#REF!,#REF!,#REF!)","v":3}]
[null,"GENRE ET CLASSES D'ÂGE\n- Voir aux pages 12 à 15 du rapport -"]
[]
[null,"DONNÉES",null,null,"Conforme aux attentes ?","Pourquoi ?"]
[null,"Âge médian"]
[null,"Variations selon l'âge\n(pour les femmes)"]
[null,"Variations selon l'âge\n(pour les hommes)"]
[null,"Variation selon le genre\n(par province)"]
[null,"Sex Ratio",null,null,null,null,null,null,null,null,null,{"$f":"COUNTA(E5:J9)","v":0}]
[]
[null,"Avez-vous connaissance de recommandations et/ou de réglementations professionnelles au sujet\nde l'indication pour l'âge pour cette pratique ?"]
[]
[null,null,null,null,"OUI",null,"NON",0]
[null,null,"Merci pour votre réponse !"]
[null,"Merci de renseigner les références ci-dessous :"]
[]
[null,{"$f":"COUNTA(B16,#REF!,#REF!)","v":2}]
[null,"Autres commentaires éventuels"]

{"sheet":"HospiAmbu","index":10,"n_rows":9,"n_cols":12,"rows_kept":9,"cut":false,"hidden":false,"merged":[[8,1,8,9],[9,1,9,9],[6,1,6,3],[6,5,6,9],[1,1,1,9],[3,1,3,3],[3,5,3,9],[4,1,4,3],[4,5,4,9],[5,1,5,3],[5,5,5,9]]}
[null,{"$f":"COUNTA(#REF!,#REF!,#REF!)","v":3}]
[null,"PRISE EN CHARGE HOSPITALIÈRE ET AMBULATOIRE\n- Voir aux pages 16 et 17 du rapport -"]
[]
[null,"DONNÉES",null,null,"Conforme aux attentes ?","Pourquoi ?"]
[null,"Pourcentage en ambulatoire"]
[null,"Variations selon les régions"]
[null,"Evolution de la prise en charge\nambulatoire",null,null,null,null,null,null,null,null,null,{"$f":"COUNTA(E5:J7)","v":0}]
[]
[null,"Autres commentaires éventuels"]

{"sheet":"StatutSocial","index":11,"n_rows":9,"n_cols":12,"rows_kept":9,"cut":false,"hidden":false,"merged":[[6,1,6,3],[6,5,6,9],[8,1,8,9],[9,1,9,9],[1,1,1,9],[3,1,3,3],[3,5,3,9],[4,1,4,3],[4,5,4,9],[5,1,5,3],[5,5,5,9]]}
[null,{"$f":"COUNTA(#REF!,#REF!,#REF!)","v":3}]
[null,"STATUT SOCIAL\n- Voir aux pages 18 et 19 du rapport -"]
[]
[null,"DONNÉES",null,null,"Conforme aux attentes ?","Pourquoi ?"]
[null,"Pourcentage en régime préférentiel"]
[null,"Ratio\nrégime préférentiel/régime général"]
[null,"Variations selon les régions",null,null,null,null,null,null,null,null,null,{"$f":"COUNTA(E5:J7)","v":0}]
[]
[null,"Autres commentaires éventuels"]

{"sheet":"Tendances","index":12,"n_rows":24,"n_cols":13,"rows_kept":24,"cut":false,"hidden":false,"merged":[[21,1,21,2],[21,3,21,4],[21,5,21,9],[12,5,12,9],[11,5,11,9],[14,1,14,2],[20,1,20,2],[19,1,19,2],[14,5,14,9],[19,5,19,9],[18,5,18,9],[17,5,17,9],[16,5,16,9],[18,3,18,4],[19,3,19,4],[20,3,20,4],[16,3,16,4],[15,1,15,2],[1,1,1,9],[3,1,3,3],[4,1,4,3],[5,1,5,3],[7,5,7,9],[7,3,7,4],[3,4,3,5],[3,6,3,9],[5,6,5,9],[4,6,4,9],[10,5,10,9],[9,5,9,9],[8,5,8,9],[13,5,13,9],[17,3,17,4],[15,3,15,4],[15,5,15,9],[4,4,4,5],[24,1,24,9],[8,1,8,2],[13,1,13,2],[12,1,12,2],[11,1,11,2],[10,1,10,2],[9,1,9,2],[18,1,18,2],[17,1,17,2],[20,5,20,9],[23,1,23,9],[16,1,16,2],[8,12,8,14],[5,4,5,5],[7,11,7,14],[9,12,9,14],[14,12,14,14],[13,12,13,14],[12,12,12,14],[11,12,11,14],[10,12,10,14],[14,3,14,4],[11,3,11,4],[12,3,12,4],[13,3,13,4],[10,3,10,4],[9,3,9,4],[8,3,8,4]]}
[null,{"$f":"COUNTA(#REF!,#REF!,#REF!)","v":3}]
[null,"TENDANCES D'ÉVOLUTION\n- Voir aux pages 20 à 22 du rapport -"]
[]
[null,"DONNÉES",null,null,"Conforme aux attentes ?",null,"Pourquoi ?"]
[null,"Tendances"]
[null,"Variation selon les zones géographiques",null,null,null,null,null,null,null,null,null,{"$f":"COUNTA(E5:J6)","v":0}]
[]
[null,null,null,"Rupture de tendances ?",null,"COMMENTAIRES",null,null,null,null,null,"LÉGENDE"]
[null,"Flandre occidentale",null,null,null,null,null,null,null,null,null,"⊕↗","Renforcement d'une tendance à la hausse"]
[null,"Flandre orientale",null,null,null,null,null,null,null,null,null,"⊖↗","Affaiblissement d'une tendance à la hausse"]
[null,"Anvers",null,null,null,null,null,null,null,null,null,"↘↗","Inversion de tendance \n(de - vers +)"]
[null,"Limbourg",null,null,null,null,null,null,null,null,null,"↗↘","Inversion de tendance \n(de + vers -)"]
[null,"Brabant-Flamand",null,null,null,null,null,null,null,null,null,"⊖↘","Affaiblissement d'une tendance à la baisse"]
[null,"Brabant-Wallon",null,null,null,null,null,null,null,null,null,"⊕↘","Renforcement d'une tendance à la baisse"]
[null,"Hainaut",null,null,null,null,null,null,null,null,null,"NA","Non significatif statistiquement"]
[null,"Liège"]
[null,"Namur"]
[null,"Luxembourg"]
[null,"FLANDRE"]
[null,"BRUXELLES"]
[null,"WALLONIE"]
[null,"TOTAL",null,null,null,null,null,null,null,null,null,{"$f":"COUNTA(D9:J22)","v":0}]
[]
[null,"Autres commentaires éventuels"]

{"sheet":"Géographique","index":13,"n_rows":7,"n_cols":12,"rows_kept":7,"cut":false,"hidden":false,"merged":[[6,1,6,9],[7,1,7,9],[1,1,1,9],[3,1,3,3],[3,4,3,5],[3,6,3,9],[4,1,4,3],[4,4,4,5],[4,6,4,9]]}
[null,{"$f":"COUNTA(#REF!,#REF!,#REF!)","v":3}]
[null,"VARIATIONS GÉOGRAPHIQUES\n- Voir aux pages 23 à 27 du rapport -"]
[]
[null,"DONNÉES",null,null,"Conforme aux attentes ?",null,"Pourquoi ?"]
[null,"Répartition géographique",null,null,null,null,null,null,null,null,null,{"$f":"COUNTA(E5:J5)","v":0}]
[]
[null,"Autres commentaires éventuels"]

{"sheet":"Complément","index":14,"n_rows":9,"n_cols":12,"rows_kept":9,"cut":false,"hidden":false,"merged":[[7,1,7,9],[8,1,8,9],[3,1,3,9],[4,1,4,9],[1,1,1,9],[5,1,5,9],[6,1,6,9]]}
[null,{"$f":"COUNTA(#REF!,#REF!,#REF!)","v":3}]
[null,"COMPLÉMENT D'ANALYSE"]
[]
[null,"Des analyses complémentaires à celle-ci seraient-elles nécessaires pour mieux comprendre la situation ?\nLesquelles ? (une par ligne)"]
[]
[]
[]
[]
[null,null,null,null,null,null,null,null,null,null,null,{"$f":"COUNTA(B5:J9)","v":0}]

{"sheet":"CONCLUSION","index":15,"n_rows":319,"n_cols":11,"rows_kept":319,"cut":false,"hidden":false,"merged":[[184,2,184,4],[187,0,187,6],[190,1,190,5],[192,0,192,6],[196,0,196,6],[151,2,151,4],[155,2,155,4],[147,2,147,4],[173,1,173,5],[175,0,175,6],[176,2,176,4],[179,0,179,6],[180,2,180,4],[183,0,183,6],[31,1,31,3],[32,1,32,2],[32,3,32,6],[2,10,5,12],[194,8,194,10],[195,8,195,10],[196,8,196,10],[133,0,133,6],[134,2,134,4],[137,0,137,6],[138,2,138,4],[141,0,141,6],[130,2,130,4],[113,2,113,4],[144,1,144,5],[110,1,110,5],[112,0,112,6],[116,0,116,6],[117,2,117,4],[120,0,120,6],[121,2,121,4],[124,0,124,6],[65,1,65,5],[68,1,68,5],[28,1,28,3],[7,0,7,3],[7,4,7,6],[9,1,9,3],[9,4,9,5],[12,1,12,2],[12,3,12,6],[29,1,29,2],[29,3,29,6],[41,1,41,2],[75,1,75,5],[76,2,76,4],[78,1,78,5],[67,2,67,5],[77,2,77,5],[80,1,80,5],[81,2,81,4],[83,1,83,5],[61,2,61,4],[66,2,66,4],[71,2,71,4],[70,1,70,5],[72,2,72,5],[73,1,73,5],[34,1,34,3],[35,1,35,2],[35,3,35,6],[37,1,37,3],[38,1,38,2],[56,2,56,4],[55,1,55,5],[57,2,57,5],[98,0,98,6],[60,1,60,5],[54,0,54,6],[46,3,46,4],[40,1,40,3],[62,2,62,5],[63,1,63,5],[58,1,58,5],[41,3,41,6],[43,0,43,3],[43,4,43,6],[45,3,45,5],[51,0,51,6],[49,3,49,4],[48,3,48,5],[38,3,38,6],[1,0,1,6],[3,0,3,6],[4,0,4,6],[26,1,26,3],[26,4,26,5],[24,1,24,2],[24,3,24,6],[11,1,11,3],[14,1,14,3],[17,1,17,3],[20,1,20,3],[23,1,23,3],[18,1,18,2],[18,3,18,6],[21,1,21,2],[21,3,21,6],[15,1,15,2],[15,3,15,6],[5,4,5,5],[5,0,5,3],[85,1,85,5],[82,2,82,5],[88,0,88,6],[166,0,166,6],[167,0,167,6],[146,0,146,6],[170,0,170,6],[150,0,150,6],[154,0,154,6],[158,0,158,6],[162,0,162,6],[90,0,90,6],[92,0,92,6],[94,0,94,6],[96,0,96,6],[127,1,127,5],[129,0,129,6],[100,0,100,6],[102,1,102,5],[104,0,104,6],[106,0,106,3],[106,4,106,6],[163,2,163,4],[159,2,159,4],[200,0,200,6],[204,0,204,6],[193,2,193,4],[197,2,197,4],[201,2,201,4],[207,1,207,5],[209,0,209,6],[213,0,213,6],[210,2,210,4],[214,2,214,4],[217,0,217,6],[219,2,219,4],[220,4,220,6],[220,0,220,3],[224,2,224,4],[225,0,225,3],[225,4,225,6],[229,2,229,4],[230,0,230,3],[230,4,230,6],[234,2,234,4],[235,0,235,3],[235,4,235,6],[244,2,244,4],[245,0,245,3],[245,4,245,6],[249,2,249,4],[239,2,239,4],[240,0,240,3],[240,4,240,6],[250,0,250,3],[250,4,250,6],[254,2,254,4],[255,0,255,3],[255,4,255,6],[259,2,259,4],[260,0,260,3],[260,4,260,6],[264,2,264,4],[265,0,265,3],[265,4,265,6],[269,2,269,4],[270,0,270,3],[270,4,270,6],[274,2,274,4],[275,0,275,3],[275,4,275,6],[279,2,279,4],[315,0,315,6],[316,0,316,6],[280,0,280,3],[280,4,280,6],[284,2,284,4],[285,0,285,3],[285,4,285,6],[303,0,303,6],[301,0,301,6],[289,0,289,6],[292,1,292,5],[294,0,294,6],[295,2,295,4],[298,0,298,6]]}
[]
["CONCLUSION"]
[null,null,null,null,null,null,null,null,null,null,"ATTENTION\nCliquez sur \"Actualiser\" pour mettre vos modifications à jour dans la conclusion et patientez…"]
[{"$f":"\"Voici un récapitulatif des éléments d'interprétation apportés\n à l'analyse de variations de la pratique de\"","v":"Voici un récapitulatif des éléments d'interprétation apportés\n à l'analyse de variations de la pratique de"}]
[{"$f":"IF(ISBLANK(INTRO!B8),\"(non précisé)\",INTRO!B8)","v":"(non précisé)"}]
["couvrant la période  ",null,null,null,{"$f":"IF(ISBLANK(INTRO!F10),\"(non précisé)\",INTRO!F10)","v":"(non précisé)"}]
[]
["La sélection des codes pour l'analyse est ",null,null,null,{"$f":"IF(Codes!H6=1,\" appropriée.\",IF(AND(Codes!J14=0,Codes!J22>0),\" insuffisante.\",IF(AND(Codes!J14>0,Codes!J22=0),\" inadéquate.\",\" inadéquate et insuffisante.\")))","v":" inadéquate et insuffisante."}]
[]
[null,{"$f":"IF(COUNTA(Codes!B10)=0,\"\",\"Les codes suivants sont inadéquats : \")","v":""}]
[]
[null,{"$f":"IF(COUNTA(Codes!B10)=0,0,\"* \"&Codes!B10)","v":0}]
[null,{"$f":"IF(COUNTA(Codes!B10)=0,\"\",\"parce que \")","v":""},null,{"$f":"Codes!D10","v":0}]
[]
[null,{"$f":"IF(COUNTA(Codes!B11)=0,0,\"* \"&Codes!B11)","v":0}]
[null,{"$f":"IF(COUNTA(Codes!B11)=0,\"\",\"parce que \")","v":""},null,{"$f":"Codes!D11","v":0}]
[]
[null,{"$f":"IF(COUNTA(Codes!B12)=0,0,\"* \"&Codes!B12)","v":0}]
[null,{"$f":"IF(COUNTA(Codes!B12)=0,\"\",\"parce que \")","v":""},null,{"$f":"Codes!D12","v":0}]
[]
[null,{"$f":"IF(COUNTA(Codes!B13)=0,0,\"* \"&Codes!B13)","v":0}]
[null,{"$f":"IF(COUNTA(Codes!B13)=0,\"\",\"parce que \")","v":""},null,{"$f":"Codes!D13","v":0}]
[]
[null,{"$f":"IF(COUNTA(Codes!B14)=0,0,\"* \"&Codes!B14)","v":0}]
[null,{"$f":"IF(COUNTA(Codes!B14)=0,\"\",\"parce que \")","v":""},null,{"$f":"Codes!D14","v":0}]
[]
[null,{"$f":"IF(COUNTA(Codes!B18)=0,\"\",\"Les codes suivants sont manquants : \")","v":""}]
[]
[null,{"$f":"IF(COUNTA(Codes!B18)=0,0,\"* \"&Codes!B18)","v":0}]
[null,{"$f":"IF(COUNTA(Codes!B18)=0,\"\",\"parce que \")","v":""},null,{"$f":"Codes!D18","v":0}]
[]
[null,{"$f":"IF(COUNTA(Codes!B19)=0,0,\"* \"&Codes!B19)","v":0}]
[null,{"$f":"IF(COUNTA(Codes!B19)=0,\"\",\"parce que \")","v":""},null,{"$f":"Codes!D19","v":0}]
[]
[null,{"$f":"IF(COUNTA(Codes!B20)=0,0,\"* \"&Codes!B20)","v":0}]
[null,{"$f":"IF(COUNTA(Codes!B20)=0,\"\",\"parce que \")","v":""},null,{"$f":"Codes!D20","v":0}]
[]
[null,{"$f":"IF(COUNTA(Codes!B21)=0,0,\"* \"&Codes!B21)","v":0}]
[null,{"$f":"IF(COUNTA(Codes!B21)=0,\"\",\"parce que \")","v":""},null,{"$f":"Codes!D21","v":0}]
[]
[null,{"$f":"IF(COUNTA(Codes!B22)=0,0,\"* \"&Codes!B22)","v":0}]
[null,{"$f":"IF(COUNTA(Codes!B22)=0,\"\",\"parce que \")","v":""},null,{"$f":"Codes!D22","v":0}]
[]
["La sélection de population effectuée est ",null,null,null,{"$f":"IF(Population!H6=1,\" appropriée.\",IF(Population!H6=2,\" inappropriée parce que :\",\"(non précisé)\"))","v":"(non précisé)"}]
[]
[null,null,null,{"$f":"IF(Population!D11=TRUE, \"* Aucune sélection sur l'âge ne devrait être appliquée.\", \"* Cette sélection sur l'âge serait souhaitable : \")","v":"* Cette sélection sur l'âge serait souhaitable : "}]
[null,null,null,{"$f":"IF(Population!D11=FALSE,\"De \"&Population!I13&\" à \"&Population!I15&\" ans.\",\"\")","v":"De 0 à 100 ans."}]
[]
[null,null,null,{"$f":"IF(OR(Population!D21=TRUE,Population!D22=TRUE), \"* Cette sélection sur le genre serait souhaitable : \", IF(Population!D20=TRUE,\"* Aucune sélection sur le genre ne devrait être appliquée.\", \"\"))","v":""}]
[null,null,null,{"$f":"IF(Population!D21=TRUE,\"Femmes\",IF(Population!D22=TRUE,\"Hommes\",\"\"))","v":""}]
[]
[{"$f":"IF(Population!B26<>0,\"Au sujet de la sélection de population, il est à noter ceci :\",\"\")","v":""}]
[{"$f":"Population!B26","v":0}]
[]
[{"$f":"IF(Contexte!F17=0,\"\",\"Les principales indications reconnues pour la pratique de \"&INTRO!B8&\" sont :\")","v":""}]
[null,{"$f":"\"- \"&UPPER(Contexte!B7)","v":"- "}]
[null,"Source :",{"$f":"IF(Contexte!C7=0,\"Non précisée\",Contexte!C7)","v":"Non précisée"}]
[null,"Ref :",{"$f":"IF(Contexte!D8=0,\"Non précisée\",Contexte!D8)","v":"Non précisée"}]
[null,{"$f":"\"NB : \"&Contexte!D7","v":"NB : "}]
[]
[null,{"$f":"\"- \"&UPPER(Contexte!B9)","v":"- "}]
[null,"Source :",{"$f":"IF(Contexte!C9=0,\"Non précisée\",Contexte!C9)","v":"Non précisée"}]
[null,"Ref :",{"$f":"IF(Contexte!D10=0,\"Non précisée\",Contexte!D10)","v":"Non précisée"}]
[null,{"$f":"\"NB : \"&Contexte!D9","v":"NB : "}]
[]
[null,{"$f":"\"- \"&UPPER(Contexte!B11)","v":"- "}]
[null,"Source :",{"$f":"IF(Contexte!C11=0,\"Non précisée\",Contexte!C11)","v":"Non précisée"}]
[null,"Ref :",{"$f":"IF(Contexte!D12=0,\"Non précisée\",Contexte!D12)","v":"Non précisée"}]
[null,{"$f":"\"NB : \"&Contexte!D11","v":"NB : "}]
[]
[null,{"$f":"\"- \"&UPPER(Contexte!B13)","v":"- "}]
[null,"Source :",{"$f":"IF(Contexte!C13=0,\"Non précisée\",Contexte!C13)","v":"Non précisée"}]
[null,"Ref :",{"$f":"IF(Contexte!D14=0,\"Non précisée\",Contexte!D14)","v":"Non précisée"}]
[null,{"$f":"\"NB : \"&Contexte!D13","v":"NB : "}]
[]
[null,{"$f":"\"- \"&UPPER(Contexte!B15)","v":"- "}]
[null,"Source :",{"$f":"IF(Contexte!C15=0,\"Non précisée\",Contexte!C15)","v":"Non précisée"}]
[null,"Ref :",{"$f":"IF(Contexte!D16=0,\"Non précisée\",Contexte!D16)","v":"Non précisée"}]
[null,{"$f":"\"NB : \"&Contexte!D15","v":"NB : "}]
[]
[null,{"$f":"\"- \"&UPPER(Contexte!B17)","v":"- "}]
[null,"Source :",{"$f":"IF(Contexte!C17=0,\"Non précisée\",Contexte!C17)","v":"Non précisée"}]
[null,"Ref :",{"$f":"IF(Contexte!D18=0,\"Non précisée\",Contexte!D18)","v":"Non précisée"}]
[null,{"$f":"\"NB : \"&Contexte!D17","v":"NB : "}]
[]
[null,{"$f":"IF(Contexte!B21=0,\"\",\"Dans le cadre du contexte de \"&INTRO!B8&\", il est intéressant de noter ceci :\")","v":""}]
[{"$f":"IF(ISBLANK(Contexte!B21),0,Contexte!B21)","v":0}]
[]
[{"$f":"IF(International!I6=2,\"Des statistiques internationales pour la pratique de \"&INTRO!B8&\" sont disponibles :\",\"Il n'y pas de statistiques internationales connues pour la pratique de \"&INTRO!B8&\".\")","v":"Il n'y pas de statistiques internationales connues pour la pratique de ."}]
[]
[{"$f":"IF(ISBLANK(International!B9),\"(Source non précisée)\",\"* \"&International!B9)","v":"(Source non précisée)"}]
[]
[{"$f":"\"* \"&International!B10","v":"* "}]
[]
[{"$f":"\"* \"&International!B11","v":"* "}]
[]
[{"$f":"\"* \"&International!B12","v":"* "}]
[]
[{"$f":"\"* \"&International!B13","v":"* "}]
[]
["ANALYSE DES DONNÉES"]
[]
[null,"VARIATION DE VOLUMES DES CODES ATTESTÉS"]
[]
[{"$f":"IF(Nomenclature!H6=2,\"On observe une variation significative de répartition en volumes des codes de nomenclature attestés sur les 10 dernières années.\",\"On n'observe pas de variation significative de répartition en volumes des codes de nomenclature attestés sur les 10 dernières années.\")","v":"On n'observe pas de variation significative de répartition en volumes des codes de nomenclature attestés sur les 10 dernières années."}]
[]
["Ces variations peuvent s'expliquer par ceci :",null,null,null,{"$f":"IF(Nomenclature!C9=\"Autre…\",IF(Nomenclature!B12=0,\"(non précisé)\",\"\"),Nomenclature!C9)","v":0}]
[]
[{"$f":"Nomenclature!B12","v":0}]
[]
[null,"SPÉCIALITÉS DES PRESTATAIRES"]
[]
[{"$f":"IF(Prestataires!E5=0,\"SPÉCIALITÉ DES PRESTATAIRES PRINCIPAUX\",\"La SPÉCIALITÉ DES PRESTATAIRES PRINCIPAUX pour la pratique de \"&INTRO!B8)","v":"SPÉCIALITÉ DES PRESTATAIRES PRINCIPAUX"}]
[null,null,{"$f":"IF(Prestataires!E5=\"oui\",\"est conforme aux attentes\",IF(Prestataires!E5=\"non\",\"n'est pas conforme aux attentes.\",IF(Prestataires!E5=\"Non applicable\",\"n'est pas analysable dans ce cas-ci.\",\"\")))","v":""}]
[{"$f":"Prestataires!F5","v":0}]
[]
[{"$f":"IF(Prestataires!E6=0,\"RÉPARTITION DES PRESTATAIRES PAR SPÉCIALITÉ\",\"La RÉPARTITION DES PRESTATAIRES par spécialité attestant pour cette pratique\")","v":"RÉPARTITION DES PRESTATAIRES PAR SPÉCIALITÉ"}]
[null,null,{"$f":"IF(Prestataires!E6=\"oui\",\"est conforme aux attentes\",IF(Prestataires!E6=\"non\",\"n'est pas conforme aux attentes.\",IF(Prestataires!E6=\"Non applicable\",\"n'est pas analysable dans ce cas-ci.\",\"\")))","v":""}]
[{"$f":"Prestataires!F6","v":0}]
[]
[{"$f":"IF(Prestataires!E7=0,\"RÉPARTITION DES VOLUMES DE PRESTATIONS PAR SPÉCIALITÉ\",\"La RÉPARTITION DES VOLUMES DE PRESTATIONS par spécialité pour cette pratique\")","v":"RÉPARTITION DES VOLUMES DE PRESTATIONS PAR SPÉCIALITÉ"}]
[null,null,{"$f":"IF(Prestataires!E7=\"oui\",\"est conforme aux attentes\",IF(Prestataires!E7=\"non\",\"n'est pas conforme aux attentes.\",IF(Prestataires!E7=\"Non applicable\",\"n'est pas analysable dans ce cas-ci.\",\"\")))","v":""}]
[{"$f":"Prestataires!F7","v":0}]
[]
["Concernant la spécialité des prestataires, il est à noter que :"]
[{"$f":"Prestataires!B10","v":0}]
[]
[null,"SPÉCIALITÉS DES PRESCRIPTEURS"]
[]
[{"$f":"IF(Prescripteurs!E5=0,\"SPÉCIALITÉ DES PRESCRIPTEURS PRINCIPAUX\",\"La SPÉCIALITÉ DES PRESCRIPTEURS PRINCIPAUX pour la pratique de \"&INTRO!B25)","v":"SPÉCIALITÉ DES PRESCRIPTEURS PRINCIPAUX"}]
[null,null,{"$f":"IF(Prescripteurs!E5=\"oui\",\"est conforme aux attentes\",IF(Prescripteurs!E5=\"non\",\"n'est pas conforme aux attentes.\",IF(Prescripteurs!E5=\"Non applicable\",\"n'est pas analysable dans ce cas-ci.\",\"\")))","v":""}]
[{"$f":"Prescripteurs!F5","v":0}]
[]
[{"$f":"IF(Prescripteurs!E6=0,\"RÉPARTITION DES PRESCRIPTEURS PAR SPÉCIALITÉ\",\"La RÉPARTITION DES PRESCRIPTEURS par spécialité prescrivant pour cette pratique\")","v":"RÉPARTITION DES PRESCRIPTEURS PAR SPÉCIALITÉ"}]
[null,null,{"$f":"IF(Prescripteurs!E6=\"oui\",\"est conforme aux attentes\",IF(Prescripteurs!E6=\"non\",\"n'est pas conforme aux attentes.\",IF(Prescripteurs!E6=\"Non applicable\",\"n'est pas analysable dans ce cas-ci.\",\"\")))","v":""}]
[{"$f":"Prescripteurs!F6","v":0}]
[]
[{"$f":"IF(Prescripteurs!E7=0,\"RÉPARTITION DES VOLUMES DE PRESCRIPTIONS PAR SPÉCIALITÉ\",\"La RÉPARTITION DES VOLUMES DE PRESCRIPTIONS par spécialité pour cette pratique\")","v":"RÉPARTITION DES VOLUMES DE PRESCRIPTIONS PAR SPÉCIALITÉ"}]
[null,null,{"$f":"IF(Prescripteurs!E7=\"oui\",\"est conforme aux attentes\",IF(Prescripteurs!E7=\"non\",\"n'est pas conforme aux attentes.\",IF(Prescripteurs!E7=\"Non applicable\",\"n'est pas analysable dans ce cas-ci.\",\"\")))","v":""}]
[{"$f":"Prescripteurs!F7","v":0}]
[]
["Concernant la spécialité des prescripteurs, il est à noter que :"]
[{"$f":"Prescripteurs!B10","v":0}]
[]
[null,"DONNÉES PAR GENRE ET PAR ÂGE"]
[]
[{"$f":"IF(ISBLANK(GenreAge!E5),\"ÂGE MEDIAN\",\"L'ÂGE MEDIAN des assurés bénéficiant de la pratique de \"&INTRO!$B$8)","v":"ÂGE MEDIAN"}]
[null,null,{"$f":"IF(GenreAge!E5=\"oui\",\"est conforme aux attentes\",IF(GenreAge!E5=\"non\",\"n'est pas conforme aux attentes.\",IF(GenreAge!E5=\"Non applicable\",\"n'est pas analysable dans ce cas-ci.\",\"\")))","v":""}]
[{"$f":"GenreAge!F5","v":0}]
[]
[{"$f":"IF(ISBLANK(GenreAge!E6),\"VARIATIONS SELON L'ÂGE (FEMMES)\",IF(GenreAge!E6=\"Non applicable\",\"Les VARIATIONS DE PRATIQUE SELON L'ÂGE chez les femmes\",\"Les VARIATIONS DE PRATIQUE SELON L'ÂGE chez les femmes\"))","v":"VARIATIONS SELON L'ÂGE (FEMMES)"}]
[null,null,{"$f":"IF(GenreAge!E6=\"oui\",\"sont conformes aux attentes\",IF(GenreAge!E6=\"non\",\"ne sont pas conformes aux attentes.\",IF(GenreAge!E6=\"Non applicable\",\"ne sont pas analysables dans ce cas-ci.\",\"\")))","v":""}]
[{"$f":"GenreAge!F6","v":0}]
[]
[{"$f":"IF(ISBLANK(GenreAge!E7),\"VARIATIONS SELON L'ÂGE (HOMMES)\",IF(GenreAge!E7=\"Non applicable\",\"Les VARIATIONS DE PRATIQUE SELON L'ÂGE chez les hommes\",\"Les VARIATIONS DE PRATIQUE SELON L'ÂGE chez les hommes\"))","v":"VARIATIONS SELON L'ÂGE (HOMMES)"}]
[null,null,{"$f":"IF(GenreAge!E7=\"oui\",\"sont conformes aux attentes\",IF(GenreAge!E7=\"non\",\"ne sont pas conformes aux attentes.\",IF(GenreAge!E7=\"Non applicable\",\"ne sont pas analysables dans ce cas-ci.\",\"\")))","v":""}]
[{"$f":"GenreAge!F7","v":0}]
[]
[{"$f":"IF(ISBLANK(GenreAge!E8),\"VARIATIONS SELON LE GENRE (PROVINCE)\",IF(GenreAge!E8=\"Non applicable\",\"Les VARIATIONS SELON LE GENRE par province\",\"Les VARIATIONS SELON LE GENRE par province\"))","v":"VARIATIONS SELON LE GENRE (PROVINCE)"}]
[null,null,{"$f":"IF(GenreAge!E8=\"oui\",\"sont conformes aux attentes\",IF(GenreAge!E8=\"non\",\"ne sont pas conformes aux attentes.\",IF(GenreAge!E8=\"Non applicable\",\"ne sont pas analysables dans ce cas-ci.\",\"\")))","v":""}]
[{"$f":"GenreAge!F8","v":0}]
[]
[{"$f":"IF(ISBLANK(GenreAge!E9),\"SEX RATIO\",IF(GenreAge!E9=\"Non applicable\",\"Le SEX RATIO pour la pratique de \"&INTRO!B8,\"Le SEX RATIO pour la pratique de \"&INTRO!B8))","v":"SEX RATIO"}]
[null,null,{"$f":"IF(GenreAge!E9=\"oui\",\"est conforme aux attentes\",IF(GenreAge!E9=\"non\",\"n'est pas conforme aux attentes.\",IF(GenreAge!E9=\"Non applicable\",\"n'est pas analysable dans ce cas-ci.\",\"\")))","v":""}]
[{"$f":"GenreAge!F9","v":0}]
[]
["RECOMMANDATIONS ET REGLEMENTATIONS PROFESSIONNELLES AU SUJET DE L'INDICATION SELON L'ÂGE"]
[{"$f":"IF(GenreAge!H13=1,\"Pas de réglementations ou de recommandations connues à ce sujet.\",IF(ISBLANK(GenreAge!B16),\"Il existe des recommandations et/ou réglementations à ce sujet. (non renseignées)\",\"Voici les recommandations et/ou réglementations que nous pouvons relever à ce sujet :\"))","v":"Il existe des recommandations et/ou réglementations à ce sujet. (non renseignées)"}]
[{"$f":"GenreAge!B16","v":0}]
[]
["Concernant les données par genre et par âge, il est à noter que :"]
[{"$f":"GenreAge!B19","v":0}]
[]
[null,"PRISE EN CHARGE HOSPITALIÈRE ET AMBULATOIRE"]
[]
[{"$f":"IF(ISBLANK(HospiAmbu!E5),\"POURCENTAGE DE PRISE EN CHARGE EN AMBULATOIRE\",IF(HospiAmbu!E5=\"Non applicable\",\"Le POURCENTAGE DE PRISE EN CHARGE EN AMBULATOIRE\",\"Le POURCENTAGE DE PRISE EN CHARGE EN AMBULATOIRE\"))","v":"POURCENTAGE DE PRISE EN CHARGE EN AMBULATOIRE"}]
[null,null,{"$f":"IF(HospiAmbu!E5=\"oui\",\"est conforme aux attentes\",IF(HospiAmbu!E5=\"non\",\"n'est pas conforme aux attentes.\",IF(HospiAmbu!E5=\"Non applicable\",\"n'est pas analysable dans ce cas-ci.\",\"\")))","v":""}]
[{"$f":"HospiAmbu!F5","v":0}]
[]
[{"$f":"IF(ISBLANK(HospiAmbu!E6),\"VARIATIONS SELON LES REGIONS\",IF(HospiAmbu!E6=\"Non applicable\",\"Les VARIATIONS SELON LES REGIONS\",\"Les VARIATIONS SELON LES REGIONS\"))","v":"VARIATIONS SELON LES REGIONS"}]
[null,null,{"$f":"IF(HospiAmbu!E6=\"oui\",\"sont conformes aux attentes\",IF(HospiAmbu!E6=\"non\",\"ne sont pas conformes aux attentes.\",IF(HospiAmbu!E6=\"Non applicable\",\"ne sont pas analysables dans ce cas-ci.\",\"\")))","v":""}]
[{"$f":"HospiAmbu!F6","v":0}]
[]
[{"$f":"IF(ISBLANK(HospiAmbu!E7),\"EVOLUTION DE LA PRISE EN CHARGE AMBULATOIRE\",\"L'EVOLUTION DE LA PRISE EN CHARGE AMBULATOIRE\")","v":"EVOLUTION DE LA PRISE EN CHARGE AMBULATOIRE"}]
[null,null,{"$f":"IF(HospiAmbu!E7=\"oui\",\"est conforme aux attentes\",IF(HospiAmbu!E7=\"non\",\"n'est pas conforme aux attentes.\",IF(HospiAmbu!E7=\"Non applicable\",\"n'est pas analysable dans ce cas-ci.\",\"\")))","v":""}]
[{"$f":"HospiAmbu!F7","v":0}]
[]
["Concernant le type de prise en charge, il est à noter que :"]
[{"$f":"HospiAmbu!B10","v":0}]
[]
[null,"RÉGIME DE REMBOURSEMENT (STATUT SOCIAL)"]
[]
[{"$f":"IF(ISBLANK(StatutSocial!E5),\"POURCENTAGE D'ASSURÉS EN REGIME PREFERENTIEL\",IF(StatutSocial!E5=\"Non applicable\",\"Le POURCENTAGE D'ASSURÉS EN REGIME PREFERENTIEL\",\"Le POURCENTAGE D'ASSURÉS EN REGIME PREFERENTIEL\"))","v":"POURCENTAGE D'ASSURÉS EN REGIME PREFERENTIEL"}]
[null,null,{"$f":"IF(StatutSocial!E5=\"oui\",\"est conforme aux attentes\",IF(StatutSocial!E5=\"non\",\"n'est pas conforme aux attentes.\",IF(StatutSocial!E5=\"Non applicable\",\"n'est pas analysable dans ce cas-ci.\",\"\")))","v":""}]
[{"$f":"StatutSocial!F5","v":0}]
[]
[{"$f":"IF(ISBLANK(StatutSocial!E6),\"RATIO REGIME PREFERENTIEL/REGIME GENERAL\",IF(StatutSocial!E6=\"Non applicable\",\"Le RATIO REGIME PREFERENTIEL/REGIME GENERAL\",\"Le RATIO REGIME PREFERENTIEL/REGIME GENERAL\"))","v":"RATIO REGIME PREFERENTIEL/REGIME GENERAL"}]
[null,null,{"$f":"IF(StatutSocial!E6=\"oui\",\"est conforme aux attentes\",IF(StatutSocial!E6=\"non\",\"n'est pas conforme aux attentes.\",IF(StatutSocial!E6=\"Non applicable\",\"n'est pas analysable dans ce cas-ci.\",\"\")))","v":""}]
[{"$f":"StatutSocial!F6","v":0}]
[]
[{"$f":"IF(ISBLANK(StatutSocial!E7),\"VARIATIONS SELON LES REGIONS\",IF(StatutSocial!E7=\"Non applicable\",\"Les VARIATIONS SELON LES REGIONS\",\"Les VARIATIONS SELON LES REGIONS\"))","v":"VARIATIONS SELON LES REGIONS"}]
[null,null,{"$f":"IF(StatutSocial!E7=\"oui\",\"sont conformes aux attentes\",IF(StatutSocial!E7=\"non\",\"ne sont pas conformes aux attentes.\",IF(StatutSocial!E7=\"Non applicable\",\"ne sont pas analysables dans ce cas-ci.\",\"\")))","v":""}]
[{"$f":"StatutSocial!F7","v":0}]
[]
["Concernant le régime de remboursement (statut social), il est à noter que :"]
[{"$f":"StatutSocial!B10","v":0}]
[]
[null,"TENDANCES"]
[]
[{"$f":"IF(ISBLANK(Tendances!E5),\"TENDANCES D'ÉVOLUTION\",\"Les TENDANCES D'ÉVOLUTION\")","v":"TENDANCES D'ÉVOLUTION"}]
[null,null,{"$f":"IF(Tendances!E5=\"oui\",\"sont conformes aux attentes\",IF(Tendances!E5=\"non\",\"ne sont pas conformes aux attentes.\",IF(Tendances!E5=\"Non applicable\",\"ne sont pas analysables dans ce cas-ci.\",\"\")))","v":""}]
[{"$f":"Tendances!G5","v":0}]
[]
[{"$f":"IF(ISBLANK(Tendances!E6),\"VARIATIONS SELON LES ZONES GÉOGRAPHIQUES\",\"Les VARIATIONS SELON LES ZONES GÉOGRAPHIQUES\")","v":"VARIATIONS SELON LES ZONES GÉOGRAPHIQUES"}]
[null,null,{"$f":"IF(Tendances!E6=\"oui\",\"sont conformes aux attentes\",IF(Tendances!E6=\"non\",\"ne sont pas conformes aux attentes.\",IF(Tendances!E6=\"Non applicable\",\"ne sont pas analysables dans ce cas-ci.\",\"\")))","v":""}]
[{"$f":"Tendances!G6","v":0}]
[]
["LES TENDANCES D'ÉVOLUTION PAR ZONE GÉOGRAPHIQUE"]
[]
[null,null,"FLANDRE OCCIDENTALE"]
[{"$f":"IF(Tendances!D9=\"NA\",\"Le profil d'évolution des tendances en \"&C220&\" est\",\"Les tendances d'évolution en \"&C220&\" montrent un profil avec \")","v":"Les tendances d'évolution en FLANDRE OCCIDENTALE montrent un profil avec "},null,null,null,{"$f":"VLOOKUP(Tendances!D9,Tendances!$L$9:$O$15,2,FALSE)","v":{"$error":"#N/A"}}]
[]
[{"$f":"Tendances!F9","v":0}]
[]
[null,null,"FLANDRE ORIENTALE"]
[{"$f":"IF(Tendances!D10=\"NA\",\"Le profil d'évolution des tendances en \"&C225&\" est\",\"Les tendances d'évolution en \"&C225&\" montrent un profil avec \")","v":"Les tendances d'évolution en FLANDRE ORIENTALE montrent un profil avec "},null,null,null,{"$f":"VLOOKUP(Tendances!D10,Tendances!$L$9:$O$15,2,FALSE)","v":{"$error":"#N/A"}}]
[]
[{"$f":"Tendances!F10","v":0}]
[]
[null,null,"ANVERS"]
[{"$f":"IF(Tendances!D11=\"NA\",\"Le profil d'évolution des tendances à \"&C230&\" est\",\"Les tendances d'évolution à \"&C230&\" montrent un profil avec \")","v":"Les tendances d'évolution à ANVERS montrent un profil avec "},null,null,null,{"$f":"VLOOKUP(Tendances!D11,Tendances!$L$9:$O$15,2,FALSE)","v":{"$error":"#N/A"}}]
[]
[{"$f":"Tendances!F11","v":0}]
[]
[null,null,"LIMBOURG"]
[{"$f":"IF(Tendances!D12=\"NA\",\"Le profil d'évolution des tendances au \"&C235&\" est\",\"Les tendances d'évolution au \"&C235&\" montrent un profil avec \")","v":"Les tendances d'évolution au LIMBOURG montrent un profil avec "},null,null,null,{"$f":"VLOOKUP(Tendances!D12,Tendances!$L$9:$O$15,2,FALSE)","v":{"$error":"#N/A"}}]
[]
[{"$f":"Tendances!F12","v":0}]
[]
[null,null,"BRABANT-FLAMAND"]
[{"$f":"IF(Tendances!D25=\"NA\",\"Le profil d'évolution des tendances en \"&C240&\" est\",\"Les tendances d'évolution en \"&C240&\" montrent un profil avec \")","v":"Les tendances d'évolution en BRABANT-FLAMAND montrent un profil avec "},null,null,null,{"$f":"VLOOKUP(Tendances!D13,Tendances!$L$9:$O$15,2,FALSE)","v":{"$error":"#N/A"}}]
[]
[{"$f":"Tendances!F13","v":0}]
[]
[null,null,"BRABANT-WALLON"]
[{"$f":"IF(Tendances!D30=\"NA\",\"Le profil d'évolution des tendances en \"&C245&\" est\",\"Les tendances d'évolution en \"&C245&\" montrent un profil avec \")","v":"Les tendances d'évolution en BRABANT-WALLON montrent un profil avec "},null,null,null,{"$f":"VLOOKUP(Tendances!D14,Tendances!$L$9:$O$15,2,FALSE)","v":{"$error":"#N/A"}}]
[]
[{"$f":"Tendances!F14","v":0}]
[]
[null,null,"HAINAUT"]
[{"$f":"IF(Tendances!D14=\"NA\",\"Le profil d'évolution des tendances au \"&C250&\" est\",\"Les tendances d'évolution au \"&C250&\" montrent un profil avec \")","v":"Les tendances d'évolution au HAINAUT montrent un profil avec "},null,null,null,{"$f":"VLOOKUP(Tendances!D15,Tendances!$L$9:$O$15,2,FALSE)","v":{"$error":"#N/A"}}]
[]
[{"$f":"Tendances!F15","v":0}]
[]
[null,null,"LIÈGE"]
[{"$f":"IF(Tendances!D15=\"NA\",\"Le profil d'évolution des tendances à \"&C255&\" est\",\"Les tendances d'évolution à \"&C255&\" montrent un profil avec \")","v":"Les tendances d'évolution à LIÈGE montrent un profil avec "},null,null,null,{"$f":"VLOOKUP(Tendances!D16,Tendances!$L$9:$O$15,2,FALSE)","v":{"$error":"#N/A"}}]
[]
[{"$f":"Tendances!F16","v":0}]
[]
[null,null,"NAMUR"]
[{"$f":"IF(Tendances!D17=\"NA\",\"Le profil d'évolution des tendances à \"&C260&\" est\",\"Les tendances d'évolution à \"&C260&\" montrent un profil avec \")","v":"Les tendances d'évolution à NAMUR montrent un profil avec "},null,null,null,{"$f":"VLOOKUP(Tendances!D17,Tendances!$L$9:$O$15,2,FALSE)","v":{"$error":"#N/A"}}]
[]
[{"$f":"Tendances!F17","v":0}]
[]
[null,null,"LUXEMBOURG"]
[{"$f":"IF(Tendances!D18=\"NA\",\"Le profil d'évolution des tendances au \"&C265&\" est\",\"Les tendances d'évolution au \"&C265&\" montrent un profil avec \")","v":"Les tendances d'évolution au LUXEMBOURG montrent un profil avec "},null,null,null,{"$f":"VLOOKUP(Tendances!D18,Tendances!$L$9:$O$15,2,FALSE)","v":{"$error":"#N/A"}}]
[]
[{"$f":"Tendances!F18","v":0}]
[]
[null,null,"RÉGION FLAMANDE"]
[{"$f":"IF(Tendances!D19=\"NA\",\"Le profil d'évolution des tendances en \"&Tendances!B19&\" est\",\"Les tendances d'évolution en \"&Tendances!B19&\" montrent un profil avec \")","v":"Les tendances d'évolution en FLANDRE montrent un profil avec "},null,null,null,{"$f":"VLOOKUP(Tendances!D19,Tendances!$L$9:$O$15,2,FALSE)","v":{"$error":"#N/A"}}]
[]
[{"$f":"Tendances!F19","v":0}]
[]
[null,null,"RÉGION BRUXELLOISE"]
[{"$f":"IF(Tendances!D20=\"NA\",\"Le profil d'évolution des tendances à \"&Tendances!B20&\" est\",\"Les tendances d'évolution à \"&Tendances!B20&\" montrent un profil avec \")","v":"Les tendances d'évolution à BRUXELLES montrent un profil avec "},null,null,null,{"$f":"VLOOKUP(Tendances!D20,Tendances!$L$9:$O$15,2,FALSE)","v":{"$error":"#N/A"}}]
[]
[{"$f":"Tendances!F20","v":0}]
[]
[null,null,"RÉGION WALLONNE"]
[{"$f":"IF(Tendances!D21=\"NA\",\"Le profil d'évolution des tendances en \"&Tendances!B21&\" est\",\"Les tendances d'évolution en \"&Tendances!B21&\" montrent un profil avec \")","v":"Les tendances d'évolution en WALLONIE montrent un profil avec "},null,null,null,{"$f":"VLOOKUP(Tendances!D21,Tendances!$L$9:$O$15,2,FALSE)","v":{"$error":"#N/A"}}]
[]
[{"$f":"Tendances!F21","v":0}]
[]
[null,null,"TOTAL"]
[{"$f":"IF(Tendances!D22=\"NA\",\"Le profil d'évolution des tendances moyennes est\",\"Les tendances moyennes d'évolution montrent un profil avec \")","v":"Les tendances moyennes d'évolution montrent un profil avec "},null,null,null,{"$f":"VLOOKUP(Tendances!D22,Tendances!$L$9:$O$15,2,FALSE)","v":{"$error":"#N/A"}}]
[]
[{"$f":"Tendances!F22","v":0}]
[]
["Concernant les tendances, il est à noter que :"]
[{"$f":"Tendances!B25","v":0}]
[]
[null,"VARIATIONS GÉOGRAPHIQUES"]
[]
[{"$f":"IF(ISBLANK(Géographique!E5),\"RÉPARTITION GÉOGRAPHIQUE\",\"La RÉPARTITION GÉOGRAPHIQUE observée pour la pratique de \"&INTRO!$B$8)","v":"RÉPARTITION GÉOGRAPHIQUE"}]
[null,null,{"$f":"IF(Géographique!E5=\"oui\",\"est conforme aux attentes\",IF(Géographique!E5=\"non\",\"n'est pas conforme aux attentes.\",IF(Géographique!E5=\"Non applicable\",\"n'est pas analysable dans ce cas-ci.\",\"\")))","v":""}]
[{"$f":"Géographique!G5","v":0}]
[]
["Concernant les variations géographiques, il est à noter que :"]
[{"$f":"Géographique!B8","v":0}]
[]
["COMPLÉMENTS D'ANALYSE"]
[]
[{"$f":"IF(Complément!L9>1,\"Afin de mieux appréhender la situation, il serait utile de réaliser ces analyses compémentaires :\",\"Afin de mieux appréhender la situation, il serait utile de réaliser cette analyse compémentaire :\")","v":"Afin de mieux appréhender la situation, il serait utile de réaliser cette analyse compémentaire :"}]
[]
[{"$f":"\"1. \"&Complément!B5","v":"1. "}]
[]
[{"$f":"\"2. \"&Complément!B6","v":"2. "}]
[]
[{"$f":"\"3. \"&Complément!B7","v":"3. "}]
[]
[{"$f":"\"4. \"&Complément!B8","v":"4. "}]
[]
[{"$f":"\"5. \"&Complément!B9","v":"5. "}]
[]
["CE RAPPORT A ÉTÉ RÉDIGÉ PAR"]
[{"$f":"INTRO!E12","v":0}]
[]
[null,null,null,"En date du"]